bitfinex/quotes_ETHUSD_20220309
["timestamp","ask_amount","ask_price","bid_price","bid_amount"]
[1646868541988,0.003824,2719.0,2718.9,3.5]
[1646868542193,0.003824,2719.0,2718.9,3.8]
[1646868542488,0.029168,2719.1,2719.0,2.50764799]
[1646868542784,0.029168,2719.2,2719.0,6.00764799]
[1646868542986,0.029168,2719.3,2719.1,3.5]
[1646868543187,0.029168,2719.3,2719.0,0.00764799]
[1646868543485,0.029168,2719.3,2719.1,0.94001073]
[1646868544094,0.03148069,2719.3,2719.1,0.94001073]
[1646868545090,0.029168,2719.3,2719.1,0.94001073]
[1646868545290,0.03287712,2719.3,2719.1,0.94001073]
[1646868545733,0.03287712,2719.3,2719.0,0.00764799]
[1646868546135,0.029168,2719.2,2719.0,0.00764799]
[1646868546934,0.07808141,2719.2,2719.0,0.00764799]
[1646868547734,0.08179058,2719.2,2719.0,0.00764799]
[1646868548636,0.07808141,2719.2,2719.0,0.00764799]
[1646868549036,0.08168452,2719.2,2719.0,0.00764799]
[1646868549889,0.07808141,2719.2,2719.0,0.00764799]
[1646868550090,0.08168452,2719.2,2719.0,0.00764799]
[1646868551089,0.07808141,2719.2,2719.0,0.00764799]
[1646868551292,0.08143613,2719.2,2719.0,0.00764799]
[1646868552291,0.07808141,2719.2,2719.0,0.00764799]
[1646868552490,0.08144112,2719.2,2719.0,0.00764799]
[1646868553535,0.07808141,2719.2,2719.0,0.00764799]
[1646868553733,0.08144112,2719.2,2719.0,0.00764799]
[1646868554740,0.07808141,2719.2,2719.0,0.00764799]
[1646868554940,0.08144112,2719.2,2719.0,0.00764799]
[1646868555940,0.07808141,2719.2,2719.0,0.00764799]
[1646868556139,0.08146565,2719.2,2719.0,0.00764799]
[1646868556983,0.07808141,2719.2,2719.0,0.00764799]
[1646868557585,0.08146565,2719.2,2719.0,0.00764799]
[1646868557787,0.08146565,2719.2,2718.7,3.5]
[1646868557985,0.11063365,2719.2,2718.7,3.5]
[1646868558185,0.10724941,2719.2,2718.8,1.52744952]
[1646868558385,0.10724941,2719.2,2718.7,3.5]
[1646868558586,0.00338425,2719.1,2718.7,3.5]
[1646868558789,0.029168,2719.0,2718.6,1.15837512]
[1646868559188,0.058336,2719.0,2718.6,1.45837512]
[1646868559388,0.058336,2719.0,2718.7,1.52755866]
[1646868559592,0.029168,2719.0,2718.7,1.52755866]
[1646868559993,0.058336,2719.0,2718.7,1.52755866]
[1646868560392,0.058336,2719.0,2718.7,5.02755866]
[1646868560636,0.058336,2719.0,2718.6,1.45837512]
[1646868560835,0.058336,2719.0,2718.7,1.52755008]
[1646868561236,0.9524797,2719.1,2718.7,1.52755008]
[1646868561637,1.2524797,2719.1,2718.7,1.52755008]
[1646868561849,1.21993,2719.1,2718.7,1.52755008]
[1646868562039,1.22331174,2719.1,2718.7,1.52755008]
[1646868563040,1.21993,2719.1,2718.7,1.52755008]
[1646868563442,1.223312,2719.1,2718.7,1.52755008]
[1646868563853,1.25248,2719.1,2718.7,1.52755008]
[1646868564241,1.249098,2719.1,2718.7,1.52755008]
[1646868564492,0.303382,2719.1,2718.7,5.02755008]
[1646868564693,0.303382,2719.1,2718.8,1.52755008]
[1646868564694,0.003382,2719.1,2718.8,1.52755008]
[1646868565191,0.003382,2719.1,2718.8,1.82755008]
[1646868565393,0.029168,2719.2,2718.9,1.52755008]
[1646868565794,0.00338204,2719.1,2718.9,1.52755008]
[1646868566595,0.029168,2719.2,2718.9,1.52755008]
[1646868566995,0.00338205,2719.1,2718.9,1.52755008]
[1646868567895,0.029168,2719.2,2718.9,1.52755008]
[1646868568137,0.00338205,2719.1,2718.9,1.52755008]
[1646868569139,0.08191104,2719.3,2718.9,1.52755008]
[1646868569339,0.08191104,2719.3,2719.1,0.01014614]
[1646868569541,0.08191104,2719.3,2719.2,1.52755008]
[1646868569742,0.05274304,2719.3,2719.2,1.52755008]
[1646868569943,0.08191104,2719.3,2719.1,0.01014614]
[1646868570147,0.06163455,2719.5,2719.2,1.52737429]
[1646868570343,0.029168,2719.5,2719.2,1.52737429]
[1646868570542,0.00338193,2719.4,2719.2,1.52737429]
[1646868571543,0.058336,2719.5,2719.2,1.52737429]
[1646868571743,0.0033819,2719.4,2719.2,1.52737429]
[1646868572290,0.0325499,2719.4,2719.2,1.52737429]
[1646868572689,0.029168,2719.5,2719.2,1.52737429]
[1646868572888,0.0033819,2719.4,2719.2,1.52737429]
[1646868573686,0.0033819,2719.4,2719.3,3.5]
[1646868573887,0.029168,2719.6,2719.3,1.52737429]
[1646868574088,0.029168,2719.6,2719.1,0.01014614]
[1646868574089,0.00338189,2719.4,2719.1,0.01014614]
[1646868574288,0.00338189,2719.4,2719.2,1.52732538]
[1646868575092,0.029168,2719.6,2719.2,1.52732538]
[1646868575297,0.00338189,2719.4,2719.2,1.52732538]
[1646868575493,0.00338189,2719.4,2719.3,1.52729472]
[1646868576241,0.029168,2719.6,2719.2,1.52729472]
[1646868576437,0.00338187,2719.5,2719.3,1.52729472]
[1646868576740,0.00338187,2719.5,2719.4,1.52729472]
[1646868577337,0.00338187,2719.5,2719.2,1.52729472]
[1646868577548,0.029168,2719.7,2719.6,1.0268069]
[1646868577845,0.029168,2719.8,2719.6,1.0268069]
[1646868578039,0.029168,2719.7,2719.6,1.0268069]
[1646868578436,0.058336,2719.7,2719.6,1.0268069]
[1646868579490,0.058336,2719.7,2719.1,0.01014614]
[1646868579691,0.029168,2719.6,2719.2,1.52728084]
[1646868579890,0.2297526,2719.9,2719.3,3.5]
[1646868580093,0.2297526,2719.9,2719.5,2.5]
[1646868580094,0.05957794,2719.9,2719.5,2.5]
[1646868580293,0.04463385,2720.3,2719.6,5.02728084]
[1646868580497,0.07380185,2720.3,2719.7,2.76121503]
[1646868580790,0.07380185,2720.3,2719.8,5.02728084]
[1646868580991,0.07380185,2720.3,2719.9,1.52728084]
[1646868580992,0.04463385,2720.3,2719.9,1.52728084]
[1646868581195,0.07380185,2720.3,2719.9,1.52728084]
[1646868581595,2.6732,2720.4,2720.0,3.5]
[1646868581791,2.6732,2720.4,2720.1,1.52728084]
[1646868581993,1.30954816,2720.6,2720.2,3.5]
[1646868582193,1.25121216,2720.6,2720.3,1.52728084]
[1646868582392,0.058336,2720.7,2720.4,3.5]
[1646868582591,0.029168,2720.7,2720.4,3.5]
[1646868582791,0.058336,2720.7,2720.2,3.5]
[1646868582999,0.029168,2720.7,2720.3,1.52676353]
[1646868583239,0.22867094,2721.1,2720.9,1.11762743]
[1646868583439,0.04497094,2721.1,2720.9,1.11762743]
[1646868583840,0.029168,2721.0,2720.9,1.11762743]
[1646868585545,0.029168,2721.0,2720.2,3.57081884]
[1646868585743,0.029168,2720.8,2720.2,3.57081884]
[1646868585944,0.058336,2720.8,2720.2,3.57081884]
[1646868586143,0.91935,2721.0,2720.1,0.3]
[1646868586144,0.029168,2720.6,2720.1,0.3]
[1646868586344,0.029168,2720.4,2720.0,3.5]
[1646868586544,0.058336,2720.4,2719.9,1.54613396]
[1646868586744,0.029168,2720.4,2719.9,0.37753396]
[1646868586987,0.058336,2720.4,2719.9,0.37753396]
[1646868587388,0.00382272,2720.3,2719.9,0.07753396]
[1646868587588,0.00382272,2720.3,2719.7,0.1837]
[1646868587790,0.00382272,2720.3,2719.9,1.19522334]
[1646868587990,0.00382272,2720.3,2719.9,1.49522334]
[1646868588392,0.058336,2720.4,2719.9,1.49522334]
[1646868588592,0.00382275,2720.2,2719.9,1.49522334]
[1646868589601,0.058336,2720.4,2719.9,1.49522334]
[1646868589799,0.00370809,2720.2,2719.9,1.49522334]
[1646868590633,0.029168,2720.5,2719.9,1.49522334]
[1646868590937,0.00370809,2720.2,2719.9,1.49522334]
[1646868591835,0.029168,2720.4,2719.9,1.49522334]
[1646868592049,0.029168,2720.5,2719.9,1.49522334]
[1646868592236,0.00370809,2720.2,2719.9,1.49522334]
[1646868593038,0.029168,2720.3,2719.9,1.49522334]
[1646868593239,0.029168,2720.4,2719.9,1.49522334]
[1646868593445,0.00359937,2720.2,2719.9,1.49522334]
[1646868594399,0.058336,2720.4,2719.9,1.49522334]
[1646868594592,0.00359937,2720.2,2719.9,1.49522334]
[1646868595194,0.00359937,2720.2,2719.7,0.4837]
[1646868595394,0.00359937,2720.2,2719.8,1.52696067]
[1646868595594,0.029168,2720.3,2719.8,1.82696067]
[1646868595794,0.00359937,2720.2,2719.8,0.3]
[1646868595998,0.00359937,2720.2,2719.7,0.1837]
[1646868595999,0.92312937,2720.2,2719.7,0.1837]
[1646868596196,0.92312937,2720.2,2719.8,1.82698949]
[1646868596400,0.92312937,2720.2,2719.7,0.1837]
[1646868596597,0.92312937,2720.2,2719.8,1.52698725]
[1646868596800,0.91953,2720.2,2719.8,2.82803981]
[1646868596998,0.00360673,2720.1,2719.8,1.30105256]
[1646868598000,0.029168,2720.3,2719.8,1.30105256]
[1646868598238,0.00360675,2720.1,2719.8,1.30105256]
[1646868598537,0.00360675,2720.1,2719.9,1.52692306]
[1646868599136,0.029168,2720.2,2719.9,1.52692306]
[1646868599336,0.00360673,2720.1,2719.9,1.52692306]
[1646868600241,1.71747463,2720.6,2719.9,1.52692306]
[1646868600242,0.029168,2720.3,2720.1,0.00721346]
[1646868600440,1.53377463,2720.6,2720.1,0.00721346]
[1646868600441,0.029168,2720.4,2720.1,0.00721346]
[1646868600640,0.029168,2720.5,2720.1,0.00721346]
[1646868601895,0.029168,2720.6,2720.1,0.00721346]
[1646868602687,0.029168,2720.6,2720.2,1.52677037]
[1646868602888,0.029168,2720.7,2720.2,1.52677037]
[1646868603087,0.029168,2720.8,2720.2,1.82677037]
[1646868603288,0.029168,2720.8,2720.1,0.00721346]
[1646868603495,0.029168,2720.8,2720.2,1.52675605]
[1646868603698,0.029168,2720.8,2720.2,1.82675605]
[1646868603892,0.029168,2720.8,2720.7,0.88774688]
[1646868604089,0.07587288,2720.9,2720.7,0.88774688]
[1646868604894,0.62541712,2720.9,2720.7,0.88774688]
[1646868605294,0.62898437,2720.9,2720.7,0.88774688]
[1646868606240,0.62541712,2720.9,2720.7,0.88774688]
[1646868606639,0.62898437,2720.9,2720.7,0.88774688]
[1646868607338,0.62898437,2720.9,2720.7,1.65624688]
[1646868607339,0.00356725,2720.9,2720.7,1.65624688]
[1646868607540,0.029168,2721.2,2720.7,1.95624688]
[1646868607738,0.00356725,2720.9,2720.7,1.95624688]
[1646868608338,0.00356725,2720.9,2720.8,0.0821845]
[1646868608742,0.029168,2721.1,2720.8,0.0821845]
[1646868608939,0.00345178,2721.0,2720.8,0.0821845]
[1646868609140,0.029168,2721.3,2720.9,2.5]
[1646868609415,0.04318408,2722.5,2721.1,0.43778145]
[1646868609598,0.00690743,2723.2,2721.7,3.0]
[1646868609599,0.051291,2723.1,2721.7,3.0]
[1646868609798,0.00690743,2723.2,2721.9,0.01234001]
[1646868609995,0.00690743,2723.2,2722.5,12.23]
[1646868610198,8.442e-05,2722.8,2722.7,0.08126208]
[1646868610400,0.01528804,2723.9,2722.9,0.3678]
[1646868610595,0.01528804,2723.9,2723.3,0.5308]
[1646868610798,0.01528804,2723.9,2723.5,0.0795519]
[1646868611000,0.01528804,2723.9,2723.6,13.19614181]
[1646868611195,0.01528804,2723.9,2723.8,0.0854478]
[1646868611196,0.00468164,2723.9,2723.8,0.0854478]
[1646868611400,0.00468164,2723.9,2723.8,15.2564478]
[1646868611596,0.00468164,2723.9,2723.8,15.471]
[1646868611796,0.00468164,2723.9,2723.8,16.471]
[1646868612396,0.00468164,2723.9,2723.8,5.241]
[1646868612801,0.00468164,2723.9,2723.8,0.3]
[1646868612998,0.00468164,2723.9,2723.7,2.37661734]
[1646868613860,0.00850019,2723.9,2723.7,2.37661734]
[1646868614069,0.03526987,2723.9,2723.8,3.5]
[1646868614241,0.03526987,2723.9,2723.8,7.42542542]
[1646868614647,0.03526987,2723.9,2723.8,10.31315084]
[1646868614845,0.10244679,2723.9,2723.8,10.31315084]
[1646868615247,0.10244679,2723.9,2723.8,6.81315084]
[1646868619190,0.02502177,2724.0,2723.9,2.7176641]
[1646868619395,0.04339617,2724.0,2723.9,2.7176641]
[1646868619591,0.03957772,2724.0,2723.9,3.0176641]
[1646868619793,0.03957772,2724.0,2723.9,6.15768952]
[1646868619794,0.04339617,2724.0,2723.9,6.15768952]
[1646868619992,0.04339617,2724.0,2723.9,9.04541494]
[1646868620194,2.3847583,2724.9,2723.9,9.04541494]
[1646868620396,0.0367488,2724.7,2723.9,9.04541494]
[1646868620636,0.01217936,2724.8,2723.9,9.04541494]
[1646868621041,0.9181,2724.5,2723.9,8.79311494]
[1646868621845,0.0444376,2724.7,2723.9,8.79311494]
[1646868622049,0.9624676,2724.7,2723.9,8.79311494]
[1646868622246,0.0268068,2724.7,2724.0,12.5898468]
[1646868622446,0.06609232,2724.7,2724.2,11.30448611]
[1646868622644,0.06609232,2724.7,2724.2,11.49418611]
[1646868622846,0.06609232,2724.7,2724.3,1.3]
[1646868623047,0.06609232,2724.7,2724.3,3.8021574]
[1646868623257,0.01413896,2724.9,2724.4,2.5]
[1646868623546,0.01413896,2724.9,2724.5,0.0837042]
[1646868623743,0.01413896,2724.9,2724.5,12.6032042]
[1646868623945,0.01413896,2724.9,2724.5,12.9032042]
[1646868624409,0.04918834,2725.3,2724.7,11.30163452]
[1646868624410,0.03576376,2725.3,2724.7,11.30163452]
[1646868624611,0.0608406,2725.3,2725.0,0.3678]
[1646868624801,1.228e-05,2725.3,2725.2,11.23]
[1646868625100,0.0556432,2725.5,2725.3,2.5]
[1646868625401,0.03286264,2725.5,2725.3,2.5008]
[1646868626200,0.03286264,2725.5,2725.3,3.4181647]
[1646868626403,0.03286264,2725.5,2725.3,0.0008]
[1646868627604,0.95078264,2725.5,2725.3,0.0008]
[1646868628239,0.03511721,2725.5,2725.3,0.0008]
[1646868629240,0.03286264,2725.5,2725.4,0.04534427]
[1646868629449,0.03668178,2725.5,2725.4,0.04534427]
[1646868630247,0.03286264,2725.5,2725.4,0.04534427]
[1646868630446,0.03286264,2725.5,2725.4,2.93306969]
[1646868630645,0.03286264,2725.5,2725.4,5.82079511]
[1646868630944,0.02721944,2725.5,2725.4,5.82079511]
[1646868634390,0.91786,2725.6,2725.4,5.82079511]
[1646868634594,0.91786,2725.6,2725.4,5.77545084]
[1646868635394,0.91786,2725.6,2725.4,2.88772542]
[1646868635641,0.91786,2725.6,2725.5,2.88772542]
[1646868635842,0.91786,2725.6,2725.5,5.77545084]
[1646868636043,0.34529368,2725.7,2725.5,5.77545084]
[1646868636242,0.04529368,2725.7,2725.5,5.77545084]
[1646868636642,0.04889643,2725.7,2725.5,5.77545084]
[1646868637549,0.04529368,2725.7,2725.5,5.77545084]
[1646868637741,0.04889647,2725.7,2725.5,5.77545084]
[1646868638546,0.96673647,2725.7,2725.5,5.77545084]
[1646868638743,0.96313368,2725.7,2725.5,5.77545084]
[1646868638943,0.96673647,2725.7,2725.5,5.77545084]
[1646868639404,0.96673647,2725.7,2725.5,5.78586192]
[1646868639996,0.96313368,2725.7,2725.5,5.78586192]
[1646868640201,0.55834597,2725.8,2725.5,5.78586192]
[1646868640705,0.25834597,2725.8,2725.5,2.8981365]
[1646868640899,0.25834597,2725.8,2725.6,2.88772542]
[1646868641099,0.25834597,2725.8,2725.6,5.77545084]
[1646868641499,0.91784,2725.7,2725.6,5.77545084]
[1646868643342,0.9643883,2725.7,2725.6,5.77545084]
[1646868645352,0.0465483,2725.7,2725.6,5.77545084]
[1646868646248,0.26200832,2725.8,2725.6,5.77545084]
[1646868646448,0.26200832,2725.8,2725.6,2.88772542]
[1646868646649,0.26200832,2725.8,2725.5,0.01161108]
[1646868646906,0.00366235,2725.8,2725.7,2.88772542]
[1646868647094,1.63137574,2725.9,2725.7,2.88772542]
[1646868647295,1.33137574,2725.9,2725.7,2.88772542]
[1646868647494,0.00366235,2725.8,2725.7,2.88772542]
[1646868648295,1.33137574,2725.9,2725.7,2.88772542]
[1646868648505,1.3350381,2725.9,2725.7,2.88772542]
[1646868649501,1.33137574,2725.9,2725.7,2.88772542]
[1646868649701,1.33497316,2725.9,2725.7,2.88772542]
[1646868650302,1.33497316,2725.9,2725.8,1.52432685]
[1646868650644,1.33137574,2725.9,2725.8,1.52432685]
[1646868651041,1.33137574,2725.9,2725.7,2.88772542]
[1646868651846,1.33137574,2725.9,2725.6,2.89813127]
[1646868652145,1.33497316,2725.9,2725.8,2.88772542]
[1646868652344,1.33497316,2725.9,2725.8,7.29980146]
[1646868653045,1.33137574,2725.9,2725.8,7.29980146]
[1646868653249,0.9363748,2725.9,2725.8,7.29980146]
[1646868653445,0.0186148,2725.9,2725.8,11.69730146]
[1646868653646,0.0186148,2725.9,2725.8,8.22646946]
[1646868653849,0.00360177,2726.0,2725.9,2.5372296]
[1646868654146,0.00360177,2726.0,2725.9,4.06158022]
[1646868654402,0.95097046,2726.1,2725.9,4.94656595]
[1646868654594,0.95457218,2726.1,2726.0,1.52435062]
[1646868655598,0.95097046,2726.1,2726.0,1.52435062]
[1646868656599,1.25097046,2726.1,2726.0,1.52435062]
[1646868657499,1.25097046,2726.1,2726.0,7.29980146]
[1646868660348,0.10266703,2726.2,2726.0,7.29980146]
[1646868660349,1.80475334,2726.3,2726.0,7.29980146]
[1646868660546,0.30835473,2726.3,2726.1,1.52435062]
[1646868660748,0.30835473,2726.3,2726.0,5.77545084]
[1646868660951,0.30835473,2726.3,2726.1,1.52411103]
[1646868661997,1.0553174,2726.3,2726.1,1.52411103]
[1646868662395,1.0553174,2726.3,2726.1,5.02411103]
[1646868662593,1.0553174,2726.3,2726.2,5.02411103]
[1646868662795,1.0553174,2726.3,2726.2,10.79956187]
[1646868663094,1.0553174,2726.3,2726.2,5.77545084]
[1646868664097,1.0553174,2726.3,2726.2,5.78724327]
[1646868666150,1.0553174,2726.3,2726.2,7.31126231]
[1646868666446,1.05946888,2726.3,2726.2,7.31126231]
[1646868667146,1.05946888,2726.3,2726.2,5.78724327]
[1646868667646,1.05946888,2726.3,2726.2,9.28724327]
[1646868667848,1.05946888,2726.3,2726.2,5.78724327]
[1646868668652,1.05946888,2726.3,2726.2,5.77545084]
[1646868669406,1.00946888,2726.3,2726.2,5.77545084]
[1646868669600,1.92708888,2726.3,2726.2,5.77545084]
[1646868671504,1.9229374,2726.3,2726.2,5.77545084]
[1646868672506,1.0053174,2726.3,2726.2,5.77545084]
[1646868685802,0.9553174,2726.3,2726.2,5.77545084]
[1646868689556,1.46360877,2726.4,2726.3,2.6]
[1646868689752,1.46360877,2726.4,2726.3,6.1]
[1646868689955,0.0084253,2726.8,2726.4,0.0867]
[1646868690154,3.59791496,2727.3,2726.7,0.029168]
[1646868690155,0.05130344,2727.2,2726.7,0.029168]
[1646868690359,0.00672284,2727.3,2727.1,0.029168]
[1646868690558,1.68e-05,2727.3,2727.2,0.01231891]
[1646868690757,0.06728746,2727.5,2727.4,0.07047894]
[1646868690758,7.928e-05,2727.5,2727.4,0.07047894]
[1646868690954,7.928e-05,2727.5,2727.4,3.57047894]
[1646868691155,7.928e-05,2727.5,2727.4,3.87047894]
[1646868691356,5.29e-05,2727.8,2727.5,0.03372472]
[1646868691554,5.396e-05,2727.7,2727.6,2.86082952]
[1646868691754,5.396e-05,2727.7,2727.6,6.66082952]
[1646868692201,5.396e-05,2727.7,2727.6,4.39425031]
[1646868692402,5.396e-05,2727.7,2727.6,0.15325031]
[1646868693499,5.396e-05,2727.7,2727.6,1.20603576]
[1646868694000,5.396e-05,2727.7,2727.6,0.15325031]
[1646868695006,5.396e-05,2727.7,2727.6,1.01976386]
[1646868695403,5.396e-05,2727.7,2727.6,3.04097573]
[1646868695649,5.396e-05,2727.7,2727.6,5.92870115]
[1646868697452,0.03020828,2727.7,2727.6,5.92870115]
[1646868698050,0.02662148,2727.7,2727.6,5.92870115]
[1646868698250,0.02662148,2727.7,2727.6,7.11077862]
[1646868698652,0.02662148,2727.7,2727.6,7.12117694]
[1646868698955,0.02662148,2727.7,2727.6,10.62117694]
[1646868698956,2.148e-05,2727.7,2727.6,10.62117694]
[1646868699151,2.148e-05,2727.7,2727.6,10.95034494]
[1646868700629,2.148e-05,2727.7,2727.6,12.18844494]
[1646868700827,2.148e-05,2727.7,2727.6,23.85944494]
[1646868701627,2.148e-05,2727.7,2727.6,6.38009947]
[1646868701830,2.148e-05,2727.7,2727.6,5.93909947]
[1646868702631,2.148e-05,2727.7,2727.6,6.97905723]
[1646868702828,2.148e-05,2727.7,2727.6,5.93909947]
[1646868703452,0.01480249,2727.8,2727.6,5.93909947]
[1646868703653,0.0110785,2727.8,2727.6,5.93909947]
[1646868703853,0.01480249,2727.8,2727.6,1.3727994]
[1646868704055,0.01480249,2727.8,2727.7,2.88772542]
[1646868704258,5.949e-05,2727.8,2727.7,9.30461884]
[1646868704458,5.949e-05,2727.8,2727.7,9.38293249]
[1646868705056,5.949e-05,2727.8,2727.7,5.88293249]
[1646868705359,5.949e-05,2727.8,2727.7,9.38293249]
[1646868705758,9.756e-05,2728.3,2727.9,0.3678]
[1646868705961,1.4e-05,2728.2,2728.1,0.0885155]
[1646868706159,1.4e-05,2728.2,2728.1,5.0586835]
[1646868706915,1.4e-05,2728.2,2728.1,6.01036082]
[1646868708108,1.4e-05,2728.2,2728.1,18.60816082]
[1646868708607,4.976e-05,2728.3,2728.2,0.01582576]
[1646868708811,2.101e-05,2728.3,2728.2,15.41362576]
[1646868709011,4.309e-05,2728.3,2728.2,15.85462576]
[1646868709407,4.309e-05,2728.3,2728.2,18.74235118]
[1646868709613,4.309e-05,2728.3,2728.2,10.4000766]
[1646868710672,4.309e-05,2728.3,2728.2,21.6300766]
[1646868710870,4.309e-05,2728.3,2728.2,10.4000766]
[1646868711572,0.0310104,2728.9,2728.7,0.21200689]
[1646868711772,0.08851452,2728.9,2728.7,0.21200689]
[1646868712377,0.09072061,2728.9,2728.7,0.21200689]
[1646868713171,0.08851452,2728.9,2728.7,0.21200689]
[1646868713572,0.09234029,2728.9,2728.7,0.21200689]
[1646868713971,1.00898029,2728.9,2728.7,0.21200689]
[1646868714425,0.05059981,2728.8,2728.7,0.21200689]
[1646868714619,3.60810393,2728.8,2728.7,0.21200689]
[1646868714818,1.10810393,2728.8,2728.7,5.98745773]
[1646868715218,0.10810393,2728.8,2728.7,5.98745773]
[1646868719163,0.10810393,2728.8,2728.7,5.99915274]
[1646868721269,0.0441137,2728.7,2727.6,0.15325031]
[1646868721466,0.9171331,2728.4,2727.6,0.15325031]
[1646868721666,0.04270936,2728.3,2727.6,0.15325031]
[1646868722310,0.04270936,2728.3,2727.6,0.18241831]
[1646868722710,0.91719,2728.2,2727.6,0.18241831]
[1646868722911,0.04884136,2728.1,2727.6,0.18241831]
[1646868724718,0.04884136,2728.1,2727.6,0.15325031]
[1646868725521,0.04767162,2727.8,2727.6,0.15325031]
[1646868727161,1.88219162,2727.8,2727.6,0.15325031]
[1646868727362,6.5,2727.7,2727.6,0.15325031]
[1646868727563,6.8,2727.7,2727.6,0.15325031]
[1646868727761,1.0,2727.7,2727.4,0.029168]
[1646868727963,0.05117189,2727.6,2727.4,0.029168]
[1646868728163,0.04447402,2727.7,2727.5,0.029168]
[1646868729262,0.04447402,2727.7,2727.2,0.029168]
[1646868729516,0.04447402,2727.7,2727.0,0.03277977]
[1646868730015,0.04447402,2727.7,2727.0,0.029168]
[1646868730219,0.91726,2727.6,2727.0,0.029168]
[1646868730418,0.04623617,2727.4,2727.0,0.029168]
[1646868730616,0.04623617,2727.4,2727.0,0.03277956]
[1646868731217,0.04623617,2727.4,2727.0,0.029168]
[1646868731422,0.04623617,2727.4,2727.1,1.52305699]
[1646868731619,0.91715,2727.6,2727.5,0.09247234]
[1646868733261,0.91715,2727.6,2727.5,0.12164034]
[1646868733861,0.89608753,2727.6,2727.5,0.12164034]
[1646868734966,0.84608753,2727.6,2727.5,0.09247234]
[1646868737312,0.82410988,2727.6,2727.5,0.09247234]
[1646868740860,0.80966815,2727.6,2727.5,0.09247234]
[1646868742662,0.91696,2727.9,2727.5,0.09247234]
[1646868742861,0.91696,2727.9,2727.6,0.029168]
[1646868743662,0.91696,2727.9,2727.6,0.11245912]
[1646868744066,1.21696,2727.9,2727.6,0.11245912]
[1646868745316,0.9169,2728.1,2727.6,0.11245912]
[1646868745516,0.9169,2728.1,2727.9,0.029168]
[1646868749869,0.9169,2728.1,2728.0,1.12887601]
[1646868750668,0.9169,2728.1,2728.0,0.07312432]
[1646868750870,0.9169,2728.1,2727.9,0.029168]
[1646868751470,0.9169,2728.1,2727.8,0.029168]
[1646868751669,0.9169,2728.1,2727.6,0.029168]
[1646868753916,1.83395,2728.1,2727.6,0.029168]
[1646868754525,1.83395,2728.1,2727.5,0.09247234]
[1646868754526,3.5,2728.0,2727.5,0.09247234]
[1646868754728,4.5,2728.0,2727.5,0.09247234]
[1646868755322,5.4172,2728.0,2727.5,0.09247234]
[1646868755662,1.83438,2727.8,2727.5,0.09247234]
[1646868757063,1.83438,2727.8,2727.5,0.04247234]
[1646868757866,1.83438,2727.8,2727.3,0.02164034]
[1646868758067,0.91729,2727.7,2727.3,0.02164034]
[1646868760021,3.13438,2727.8,2727.4,1.52304496]
[1646868760219,3.13438,2727.8,2727.5,0.0693188]
[1646868760220,0.9172,2727.8,2727.5,0.0693188]
[1646868760421,1.9172,2727.8,2727.5,0.029168]
[1646868760619,0.9172,2727.8,2727.5,0.029168]
[1646868760819,0.9172,2727.8,2727.6,0.029168]
[1646868761922,0.9172,2727.8,2727.5,0.029168]
[1646868762122,0.9172,2727.8,2727.3,0.02164034]
[1646868762327,0.9172,2727.8,2727.4,1.52302975]
[1646868762524,1.83446,2727.8,2727.4,1.52302975]
[1646868762722,1.83446,2727.8,2727.4,1.49302975]
[1646868763167,2.79299686,2727.8,2727.3,0.02164034]
[1646868763367,1.83458,2727.7,2727.3,0.02164034]
[1646868763767,2.75186,2727.7,2727.3,0.02164034]
[1646868764168,3.75186,2727.7,2727.3,0.02164034]
[1646868764373,2.75186,2727.7,2727.3,0.02164034]
[1646868764573,1.0,2727.7,2727.3,0.02164034]
[1646868764771,2.83446,2727.8,2727.3,0.02164034]
[1646868764978,0.9172,2727.8,2727.3,0.02164034]
[1646868765172,0.9172,2727.8,2727.5,0.029168]
[1646868766173,0.91693,2728.0,2727.7,0.07618916]
[1646868766572,1.21693,2728.0,2727.7,0.07618916]
[1646868766772,1.21693,2728.0,2727.5,0.029168]
[1646868767819,1.21693,2728.0,2727.5,0.93070062]
[1646868768014,1.21693,2728.0,2727.6,0.07304074]
[1646868769416,1.21693,2728.0,2727.5,0.029168]
[1646868769922,1.21693,2728.0,2727.3,0.02164034]
[1646868771066,0.91713,2727.9,2727.3,0.02164034]
[1646868771268,2.75124,2727.9,2727.3,0.02164034]
[1646868771767,4.05124,2727.9,2727.3,0.02164034]
[1646868771967,3.05124,2727.9,2727.3,0.02164034]
[1646868772170,4.05124,2727.9,2727.3,0.02164034]
[1646868773068,0.91717,2727.8,2727.3,0.02164034]
[1646868776222,4.05124,2727.9,2727.3,0.02164034]
[1646868776546,0.91705,2727.8,2727.3,0.02164034]
[1646868779266,0.91705,2727.8,2727.5,1.00188023]
[1646868779468,0.91705,2727.8,2727.5,1.03104823]
[1646868782118,0.91705,2727.8,2727.5,0.029168]
[1646868782317,1.83419,2727.8,2727.5,0.029168]
[1646868782920,1.83419,2727.8,2727.6,1.52295101]
[1646868783118,0.91705,2727.8,2727.6,1.52295101]
[1646868783519,3.13411,2727.9,2727.6,1.55211901]
[1646868783520,1.3,2727.9,2727.6,1.55211901]
[1646868783818,1.21693,2728.0,2727.7,1.52295101]
[1646868784623,1.16693,2728.0,2727.8,1.21351688]
[1646868785024,1.16693,2728.0,2727.8,0.08729352]
[1646868785223,1.16693,2728.0,2727.6,0.029168]
[1646868785224,1.16693,2728.0,2727.7,0.029168]
[1646868785665,1.16693,2728.0,2727.6,0.029168]
[1646868785867,1.16693,2728.0,2727.5,0.029168]
[1646868785868,1.16693,2728.0,2727.7,1.52290745]
[1646868786064,1.16693,2728.0,2727.5,0.029168]
[1646868786268,1.16693,2728.0,2727.6,1.52291834]
[1646868787466,0.91714,2727.9,2727.6,1.52291834]
[1646868787767,3.05138,2727.9,2727.6,1.52291834]
[1646868788166,4.05138,2727.9,2727.6,1.52291834]
[1646868788767,0.91719,2727.8,2727.6,1.52291834]
[1646868790226,1.83455,2727.7,2727.6,1.52291834]
[1646868790427,1.83455,2727.7,2727.3,0.08986019]
[1646868790627,1.83455,2727.7,2727.4,1.52291834]
[1646868791034,4.46442521,2727.6,2727.0,0.0305854]
[1646868791229,4.46442521,2727.6,2727.1,1.52303924]
[1646868791230,0.05369751,2727.5,2727.1,1.52303924]
[1646868791429,0.91734,2727.4,2727.1,1.52303924]
[1646868791631,3.941,2727.3,2727.0,0.00362682]
[1646868791828,1.8857217,2727.2,2727.0,0.00362682]
[1646868792028,0.04956983,2727.1,2726.7,1.52323312]
[1646868792230,0.04956983,2727.1,2726.8,1.52323312]
[1646868792231,0.91759,2727.0,2726.8,1.52323312]
[1646868792429,0.91759,2727.0,2726.5,0.029168]
[1646868792628,0.91759,2727.0,2726.6,1.5232805]
[1646868793182,1.35859,2727.0,2726.6,1.5232805]
[1646868793366,0.91757,2726.9,2726.6,1.5232805]